fUST/lending_fUST_20250718
["ID","MTS","AMOUNT","RATE_DAILY","PERIOD"]
[372934106,1752813063855,-560.37,0.00020273,2]
[372934107,1752813063865,-152.293011,0.00020273,2]
[372934108,1752813063875,-152.293011,0.00020273,2]
[372934109,1752813063885,-460.0,0.00020273,2]
[372934110,1752813063894,-2738.5,0.00020273,2]
[372934111,1752813063904,-151.0,0.00020273,2]
[372934112,1752813063915,-151.0,0.00020273,2]
[372934113,1752813063924,-460.0,0.00020273,2]
[372934114,1752813063934,-151.0,0.00020273,2]
[372934115,1752813063943,-525.79,0.00020273,2]
[372934116,1752813063955,-2535.91,0.00020273,2]
[372934117,1752813063965,-513.61,0.00020273,2]
[372934118,1752813063975,-3286.51,0.00020273,2]
[372934119,1752813063984,-349.438868,0.00020273,2]
[372934120,1752813063999,-349.438868,0.00020273,2]
[372934121,1752813064010,-460.0,0.00020273,2]
[372934122,1752813064020,-852.12,0.00020273,2]
[372934123,1752813064031,-479.16,0.00020273,2]
[372934124,1752813064040,-1073.62,0.00020273,2]
[372934125,1752813064050,-1477.28,0.00020273,2]
[372934126,1752813064060,-774.58,0.00020273,2]
[372934127,1752813064070,-638.51,0.00020273,2]
[372934128,1752813064079,-1916.82,0.00020273,2]
[372934129,1752813064089,-571.08,0.00020273,2]
[372934130,1752813064099,-1136.96,0.00020273,2]
[372934131,1752813064109,-646.05,0.00020273,2]
[372934132,1752813064119,-690.82,0.00020273,2]
[372934133,1752813064129,-460.0,0.00020273,2]
[372934134,1752813064139,-307.283629,0.00020273,2]
[372934135,1752813064149,-2756.34,0.00020273,2]
[372934136,1752813064159,-1040.86,0.00020273,2]
[372934137,1752813064169,-460.0,0.00020273,2]
[372934138,1752813064179,-460.0,0.00020273,2]
[372934139,1752813064188,-467.14,0.00020273,2]
[372934140,1752813064199,-460.0,0.00020273,2]
[372934141,1752813064210,-4760.88,0.00020273,2]
[372934142,1752813064219,-472.26,0.00020273,2]
[372934143,1752813064300,-460.0,0.00020273,2]
[372934144,1752813064320,-570.06,0.00020273,2]
[372934145,1752813064330,-4406.26,0.00020273,2]
[372934146,1752813064340,-508.35,0.00020273,2]
[372934147,1752813064349,-472.91,0.00020273,2]
[372934148,1752813064359,-856.08,0.00020273,2]
[372934149,1752813064369,-487.92,0.00020273,2]
[372934150,1752813064379,-1340.97,0.00020273,2]
[372934151,1752813064388,-582.41,0.00020273,2]
[372934152,1752813064398,-2433.29,0.00020273,2]
[372934153,1752813064408,-1705.16,0.00020273,2]
[372934154,1752813064420,-1722.56,0.00020273,2]
[372934155,1752813064430,-460.0,0.00020273,2]
[372934156,1752813064439,-505.66,0.00020273,2]
[372934157,1752813064449,-2489.82,0.00020273,2]
[372934158,1752813064461,-2945.34,0.00020273,2]
[372934159,1752813064470,-151.0,0.0002039,2]
[372934160,1752813064480,-151.0,0.0002039,2]
[372934161,1752813064490,-151.0,0.0002039,2]
[372934162,1752813064500,-207.4,0.0002039,2]
[372934163,1752813064510,-151.0,0.0002039,2]
[372934164,1752813064520,-151.0,0.0002039,2]
[372934165,1752813064529,-151.0,0.0002039,2]
[372934166,1752813064538,-151.0,0.0002039,2]
[372934167,1752813064548,-151.0,0.0002039,2]
[372934168,1752813064558,-1662.9171888,0.0002039,2]
[372934169,1752813064568,-151.0,0.0002039,2]
[372934170,1752813064578,-151.0,0.0002039,2]
[372934171,1752813064589,-151.0,0.0002039,2]
[372934172,1752813064599,-151.0,0.0002039,2]
[372934173,1752813064609,-151.0,0.0002039,2]
[372934174,1752813064619,-151.0,0.0002039,2]
[372934175,1752813064628,-151.0,0.0002039,2]
[372934176,1752813064638,-151.0,0.0002039,2]
[372934177,1752813064648,-151.0,0.0002039,2]
[372934178,1752813064657,-151.0,0.0002039,2]
[372934179,1752813064667,-151.0,0.0002039,2]
[372934180,1752813064677,-151.0,0.0002039,2]
[372934181,1752813064686,-7043.81364026,0.0002039,2]
[372934182,1752813064696,-151.0,0.0002039,2]
[372934183,1752813064706,-151.0,0.0002039,2]
[372934184,1752813064715,-151.0,0.0002039,2]
[372934185,1752813064724,-151.0,0.0002039,2]
[372934186,1752813064734,-151.470043,0.0002039,2]
[372934187,1752813064744,-496.787625,0.0002039,2]
[372934188,1752813064754,-496.787625,0.0002039,2]
[372934189,1752813064763,-150.0,0.00020407,2]
[372934190,1752813064773,-808.27577974,0.00020432,2]
[372934191,1752813064783,-513.5,0.00020547,2]
[372934192,1752813064793,-567.04,0.00020547,2]
[372934193,1752813064803,-460.0,0.00020547,2]
[372934194,1752813064812,-460.0,0.00020547,2]
[372934195,1752813064822,-777.35,0.00020547,2]
[372934196,1752813064832,-558.88,0.00020547,2]
[372934197,1752813064841,-460.0,0.00020547,2]
[372934198,1752813064851,-460.0,0.00020547,2]
[372934199,1752813064860,-460.0,0.00020547,2]
[372934200,1752813064870,-460.0,0.00020547,2]
[372934201,1752813064880,-460.0,0.00020547,2]
[372934202,1752813064889,-787.34,0.00020547,2]
[372934203,1752813064898,-460.0,0.00020547,2]
[372934204,1752813064908,-1702.85,0.00020547,2]
[372934205,1752813064918,-460.0,0.00020547,2]
[372934206,1752813064927,-547.71,0.00020547,2]
[372934207,1752813064937,-555.77,0.00020547,2]
[372934208,1752813064947,-535.54,0.00020547,2]
[372934209,1752813064957,-460.0,0.00020547,2]
[372934210,1752813064967,-460.0,0.00020547,2]
[372934211,1752813064977,-460.0,0.00020547,2]
[372934212,1752813064986,-1010.83,0.00020547,2]
[372934213,1752813064995,-560.37,0.00020547,2]
[372934214,1752813065005,-460.0,0.00020547,2]
[372934215,1752813065014,-2738.5,0.00020547,2]
[372934216,1752813065024,-460.0,0.00020547,2]
[372934217,1752813065034,-525.79,0.00020547,2]
[372934218,1752813065043,-2535.91,0.00020547,2]
[372934219,1752813065053,-513.61,0.00020547,2]
[372934220,1752813065062,-3286.51,0.00020547,2]
[372934221,1752813065072,-460.0,0.00020547,2]
[372934222,1752813065081,-852.12,0.00020547,2]
[372934223,1752813065091,-479.16,0.00020547,2]
[372934224,1752813065101,-1073.62,0.00020547,2]
[372934225,1752813065111,-1477.28,0.00020547,2]
[372934226,1752813065120,-774.58,0.00020547,2]
[372934227,1752813065130,-638.51,0.00020547,2]
[372934228,1752813065140,-1916.82,0.00020547,2]
[372934229,1752813065150,-571.08,0.00020547,2]
[372934230,1752813065159,-1136.96,0.00020547,2]
[372934231,1752813065169,-646.05,0.00020547,2]
[372934232,1752813065179,-690.82,0.00020547,2]
[372934233,1752813065189,-460.0,0.00020547,2]
[372934234,1752813065199,-2756.34,0.00020547,2]
[372934235,1752813065209,-1040.86,0.00020547,2]
[372934236,1752813065219,-460.0,0.00020547,2]
[372934237,1752813065228,-460.0,0.00020547,2]
[372934238,1752813065237,-467.14,0.00020547,2]
[372934239,1752813065247,-460.0,0.00020547,2]
[372934240,1752813065257,-4760.88,0.00020547,2]
[372934241,1752813065267,-472.26,0.00020547,2]
[372934242,1752813065276,-460.0,0.00020547,2]
[372934243,1752813065285,-570.06,0.00020547,2]
[372934244,1752813065295,-4406.26,0.00020547,2]
[372934245,1752813065305,-508.35,0.00020547,2]
[372934246,1752813065315,-472.91,0.00020547,2]
[372934247,1752813065324,-856.08,0.00020547,2]
[372934248,1752813065334,-487.92,0.00020547,2]
[372934249,1752813065343,-1340.97,0.00020547,2]
[372934250,1752813065353,-582.41,0.00020547,2]
[372934251,1752813065362,-2433.29,0.00020547,2]
[372934252,1752813065372,-1705.16,0.00020547,2]
[372934253,1752813065381,-1722.56,0.00020547,2]
[372934254,1752813065391,-460.0,0.00020547,2]
[372934255,1752813065400,-505.66,0.00020547,2]
[372934256,1752813065410,-2489.82,0.00020547,2]
[372934257,1752813065423,-2945.34,0.00020547,2]
[372934258,1752813065433,-2165.62674999,0.00020716,2]
[372934259,1752813065442,-513.5,0.00020821,2]
[372934260,1752813065453,-567.04,0.00020821,2]
[372934261,1752813065464,-460.0,0.00020821,2]
[372934262,1752813065473,-480.35242409,0.00020821,2]
[372934263,1752813065483,-777.35,0.00020821,2]
[372934264,1752813065494,-558.88,0.00020821,2]
[372934265,1752813065505,-460.0,0.00020821,2]
[372934266,1752813065515,-460.0,0.00020821,2]
[372934267,1752813065525,-426.30755445,0.00020821,2]
[372934268,1752813065535,-460.0,0.00020821,2]
[372934269,1752813065544,-460.0,0.00020821,2]
[372934270,1752813065554,-787.34,0.00020821,2]
[372934271,1752813065564,-492.43,0.00020821,2]
[372934272,1752813065574,-1702.85,0.00020821,2]
[372934273,1752813065585,-370.40056175,0.00020821,2]
[372934274,1752813065596,-547.71,0.00020821,2]
[372934275,1752813065607,-555.77,0.00020821,2]
[372934276,1752813065618,-535.54,0.00020821,2]
[372934277,1752813065628,-460.0,0.00020821,2]
[372934278,1752813065638,-460.0,0.00020821,2]
[372934279,1752813065719,-460.0,0.00020821,2]
[372934280,1752813065729,-1010.83,0.00020821,2]
[372934281,1752813065738,-560.37,0.00020821,2]
[372934282,1752813065747,-460.0,0.00020821,2]
[372934283,1752813065756,-2738.5,0.00020821,2]
[372934284,1752813065765,-460.0,0.00020821,2]
[372934285,1752813065775,-525.79,0.00020821,2]
[372934286,1752813065784,-2535.91,0.00020821,2]
[372934287,1752813065793,-513.61,0.00020821,2]
[372934288,1752813065803,-3286.51,0.00020821,2]
[372934289,1752813065812,-460.0,0.00020821,2]
[372934290,1752813065821,-852.12,0.00020821,2]
[372934291,1752813065831,-479.16,0.00020821,2]
[372934292,1752813065840,-1073.62,0.00020821,2]
[372934293,1752813065850,-1477.28,0.00020821,2]
[372934294,1752813065860,-774.58,0.00020821,2]
[372934295,1752813065870,-638.51,0.00020821,2]
[372934296,1752813065880,-1916.82,0.00020821,2]
[372934297,1752813065890,-571.08,0.00020821,2]
[372934298,1752813065899,-1136.96,0.00020821,2]
[372934299,1752813065909,-646.05,0.00020821,2]
[372934300,1752813065918,-690.82,0.00020821,2]
[372934301,1752813065928,-466.41942937,0.00020821,2]
[372934302,1752813065938,-2756.34,0.00020821,2]
[372934303,1752813065948,-1040.86,0.00020821,2]
[372934304,1752813065957,-460.0,0.00020821,2]
[372934305,1752813065967,-460.0,0.00020821,2]
[372934306,1752813065977,-467.14,0.00020821,2]
[372934307,1752813065986,-460.0,0.00020821,2]
[372934308,1752813065996,-4760.88,0.00020821,2]
[372934309,1752813066006,-472.26,0.00020821,2]
[372934310,1752813066016,-460.0,0.00020821,2]
[372934311,1752813066026,-570.06,0.00020821,2]
[372934312,1752813066035,-4406.26,0.00020821,2]
[372934313,1752813066044,-508.35,0.00020821,2]
[372934314,1752813066054,-472.91,0.00020821,2]
[372934315,1752813066064,-856.08,0.00020821,2]
[372934316,1752813066074,-487.92,0.00020821,2]
[372934317,1752813066083,-1340.97,0.00020821,2]
[372934318,1752813066093,-2433.29,0.00020821,2]
[372934319,1752813066103,-582.41,0.00020821,2]
[372934320,1752813066112,-1705.16,0.00020821,2]
[372934321,1752813066122,-1722.56,0.00020821,2]
[372934322,1752813066131,-460.0,0.00020821,2]
[372934323,1752813066141,-505.66,0.00020821,2]
[372934324,1752813066151,-2489.82,0.00020821,2]
[372934325,1752813066160,-2945.34,0.00020821,2]
[372934326,1752813066170,-485.521,0.00020954,2]
[372934327,1752813066180,-1802.21828944,0.00020995,2]
[372934328,1752813066190,-323.26793789,0.00021074,2]
[372934329,1752813066200,-513.5,0.00021095,2]
[372934330,1752813066211,-567.04,0.00021095,2]
[372934331,1752813066221,-460.0,0.00021095,2]
[372934332,1752813066231,-777.35,0.00021095,2]
[372934333,1752813066240,-558.88,0.00021095,2]
[372934334,1752813066250,-460.0,0.00021095,2]
[372934335,1752813066260,-460.0,0.00021095,2]
[372934336,1752813066269,-460.0,0.00021095,2]
[372934337,1752813066279,-460.0,0.00021095,2]
[372934338,1752813066288,-787.34,0.00021095,2]
[372934339,1752813066298,-1702.85,0.00021095,2]
[372934340,1752813066308,-547.71,0.00021095,2]
[372934341,1752813066317,-555.77,0.00021095,2]
[372934342,1752813066327,-535.54,0.00021095,2]
[372934343,1752813066336,-460.0,0.00021095,2]
[372934344,1752813066346,-460.0,0.00021095,2]
[372934345,1752813066355,-460.0,0.00021095,2]
[372934346,1752813066365,-1010.83,0.00021095,2]
[372934347,1752813066375,-560.37,0.00021095,2]
[372934348,1752813066384,-460.0,0.00021095,2]
[372934349,1752813066393,-2738.5,0.00021095,2]
[372934350,1752813066403,-460.0,0.00021095,2]
[372934351,1752813066412,-525.79,0.00021095,2]
[372934352,1752813066427,-2535.91,0.00021095,2]
[372934353,1752813066436,-513.61,0.00021095,2]
[372934354,1752813066446,-3286.51,0.00021095,2]
[372934355,1752813066459,-460.0,0.00021095,2]
[372934356,1752813066468,-479.16,0.00021095,2]
[372934357,1752813066478,-852.12,0.00021095,2]
[372934358,1752813066488,-1073.62,0.00021095,2]
[372934359,1752813066499,-1477.28,0.00021095,2]
[372934360,1752813066509,-774.58,0.00021095,2]
[372934361,1752813066519,-638.51,0.00021095,2]
[372934362,1752813066529,-1916.82,0.00021095,2]
[372934363,1752813066538,-571.08,0.00021095,2]
[372934364,1752813066548,-1136.96,0.00021095,2]
[372934365,1752813066558,-646.05,0.00021095,2]
[372934366,1752813066568,-690.82,0.00021095,2]
[372934367,1752813066577,-2756.34,0.00021095,2]
[372934368,1752813066588,-1040.86,0.00021095,2]
[372934369,1752813066597,-460.0,0.00021095,2]
[372934370,1752813066607,-460.0,0.00021095,2]
[372934371,1752813066617,-467.14,0.00021095,2]
[372934372,1752813066625,-460.0,0.00021095,2]
[372934373,1752813066634,-4760.88,0.00021095,2]
[372934374,1752813066644,-472.26,0.00021095,2]
[372934375,1752813066653,-460.0,0.00021095,2]
[372934376,1752813066662,-4406.26,0.00021095,2]
[372934377,1752813066673,-570.06,0.00021095,2]
[372934378,1752813066686,-508.35,0.00021095,2]
[372934379,1752813066695,-472.91,0.00021095,2]
[372934380,1752813066708,-856.08,0.00021095,2]
[372934381,1752813066718,-487.92,0.00021095,2]
[372934382,1752813066727,-1340.97,0.00021095,2]
[372934383,1752813066737,-2433.29,0.00021095,2]
[372934384,1752813066747,-582.41,0.00021095,2]
[372934385,1752813066756,-1705.16,0.00021095,2]
[372934386,1752813066766,-1722.56,0.00021095,2]
[372934387,1752813066776,-460.0,0.00021095,2]
[372934388,1752813066786,-505.66,0.00021095,2]
[372934389,1752813066796,-2489.82,0.00021095,2]
[372934390,1752813066805,-2945.34,0.00021095,2]
[372934391,1752813066818,-5000.0,0.00021137,2]
[372934392,1752813066828,-823.0,0.00021206,2]
[372934393,1752813066838,-513.5,0.00021369,2]
[372934394,1752813066848,-567.04,0.00021369,2]
[372934395,1752813066858,-151.0,0.00021369,2]
[372934396,1752813066867,-151.0,0.00021369,2]
[372934397,1752813066878,-151.0,0.00021369,2]
[372934398,1752813066887,-460.0,0.00021369,2]
[372934399,1752813066897,-777.35,0.00021369,2]
[372934400,1752813066906,-270.760008,0.00021369,2]
[372934401,1752813066916,-270.760008,0.00021369,2]
[372934402,1752813066990,-558.88,0.00021369,2]
[372934403,1752813067000,-275.523176,0.00021369,2]
[372934404,1752813067010,-151.0,0.00021369,2]
[372934405,1752813067020,-153.438271,0.00021369,2]
[372934406,1752813067029,-151.0,0.00021369,2]
[372934407,1752813067039,-531.84010269,0.00021369,2]
[372934408,1752813067048,-460.0,0.00021369,2]
[372934409,1752813067058,-151.0,0.00021369,2]
[372934410,1752813067068,-460.0,0.00021369,2]
[372934411,1752813067077,-151.0,0.00021369,2]
[372934412,1752813067087,-151.0,0.00021369,2]
[372934413,1752813067096,-151.0,0.00021369,2]
[372934414,1752813067106,-151.0,0.00021369,2]
[372934415,1752813067115,-460.0,0.00021369,2]
[372934416,1752813067125,-1201.543772,0.00021369,2]
[372934417,1752813067134,-787.34,0.00021369,2]
[372934418,1752813067143,-1201.543772,0.00021369,2]
[372934419,1752813067153,-1702.85,0.00021369,2]
[372934420,1752813067162,-547.71,0.00021369,2]
[372934421,1752813067172,-555.77,0.00021369,2]
[372934422,1752813067181,-535.54,0.00021369,2]
[372934423,1752813067190,-574.27,0.00021369,2]
[372934424,1752813067202,-460.0,0.00021369,2]
[372934425,1752813067211,-460.0,0.00021369,2]
[372934426,1752813067220,-1010.83,0.00021369,2]
[372934427,1752813067230,-560.37,0.00021369,2]
[372934428,1752813067240,-460.0,0.00021369,2]
[372934429,1752813067250,-2738.5,0.00021369,2]
[372934430,1752813067260,-255.45,0.00021369,2]
[372934431,1752813067270,-525.79,0.00021369,2]
[372934432,1752813067280,-2535.91,0.00021369,2]
[372934433,1752813067290,-513.61,0.00021369,2]
[372934434,1752813067299,-3286.51,0.00021369,2]
[372934435,1752813067309,-460.0,0.00021369,2]
[372934436,1752813067319,-479.16,0.00021369,2]
[372934437,1752813067329,-852.12,0.00021369,2]
[372934438,1752813067338,-1073.62,0.00021369,2]
[372934439,1752813067349,-1477.28,0.00021369,2]
[372934440,1752813067358,-774.58,0.00021369,2]
[372934441,1752813067368,-638.51,0.00021369,2]
[372934442,1752813067377,-151.0,0.00021369,2]
[372934443,1752813067387,-1916.82,0.00021369,2]
[372934444,1752813067396,-571.08,0.00021369,2]
[372934445,1752813067406,-1136.96,0.00021369,2]
[372934446,1752813067415,-646.05,0.00021369,2]
[372934447,1752813067428,-690.82,0.00021369,2]
[372934448,1752813067438,-225.240953,0.00021369,2]
[372934449,1752813067447,-2756.34,0.00021369,2]
[372934450,1752813067459,-1040.86,0.00021369,2]
[372934451,1752813067469,-460.0,0.00021369,2]
[372934452,1752813067479,-460.0,0.00021369,2]
[372934453,1752813067489,-151.0,0.00021369,2]
[372934454,1752813067499,-467.14,0.00021369,2]
[372934455,1752813067510,-518.4812801,0.00021369,2]
[372934456,1752813067520,-4760.88,0.00021369,2]
[372934457,1752813067530,-472.26,0.00021369,2]
[372934458,1752813067539,-460.0,0.00021369,2]
[372934459,1752813067549,-4406.26,0.00021369,2]
[372934460,1752813067558,-570.06,0.00021369,2]
[372934461,1752813067568,-508.35,0.00021369,2]
[372934462,1752813067577,-472.91,0.00021369,2]
[372934463,1752813067587,-856.08,0.00021369,2]
[372934464,1752813067597,-487.92,0.00021369,2]
[372934465,1752813067607,-151.0,0.00021369,2]
[372934466,1752813067616,-1340.97,0.00021369,2]
[372934467,1752813067626,-2433.29,0.00021369,2]
[372934468,1752813067635,-582.41,0.00021369,2]
[372934469,1752813067645,-151.0,0.00021369,2]
[372934470,1752813067654,-1705.16,0.00021369,2]
[372934471,1752813067663,-1722.56,0.00021369,2]
[372934472,1752813067673,-460.0,0.00021369,2]
[372934473,1752813067683,-151.0,0.00021369,2]
[372934474,1752813067694,-151.0,0.00021369,2]
[372934475,1752813067705,-505.66,0.00021369,2]
[372934476,1752813067716,-2489.82,0.00021369,2]
[372934477,1752813067727,-2945.34,0.00021369,2]
[372934478,1752813067737,-2165.62674999,0.00021398,2]
[372934479,1752813067746,-968.0,0.00021407,2]
[372934480,1752813067756,-650.826,0.00021407,2]
[372934481,1752813067766,-2156.0,0.00021407,2]
[372934482,1752813067775,-458.37961693,0.00021484,2]
[372934483,1752813067784,-513.5,0.00021643,2]
[372934484,1752813067795,-567.04,0.00021643,2]
[372934485,1752813067804,-460.0,0.00021643,2]
[372934486,1752813067814,-777.35,0.00021643,2]
[372934487,1752813067824,-558.88,0.00021643,2]
[372934488,1752813067833,-460.0,0.00021643,2]
[372934489,1752813067842,-460.0,0.00021643,2]
[372934490,1752813067852,-460.0,0.00021643,2]
[372934491,1752813067861,-787.34,0.00021643,2]
[372934492,1752813067871,-1702.85,0.00021643,2]
[372934493,1752813067881,-547.71,0.00021643,2]
[372934494,1752813067891,-555.77,0.00021643,2]
[372934495,1752813067900,-535.54,0.00021643,2]
[372934496,1752813067909,-460.0,0.00021643,2]
[372934497,1752813067920,-460.0,0.00021643,2]
[372934498,1752813067929,-1010.83,0.00021643,2]
[372934499,1752813067939,-560.37,0.00021643,2]
[372934500,1752813067950,-460.0,0.00021643,2]
[372934501,1752813067962,-2738.5,0.00021643,2]
[372934502,1752813067971,-525.79,0.00021643,2]
[372934503,1752813067982,-2535.91,0.00021643,2]
[372934504,1752813067991,-151.0,0.00021643,2]
[372934505,1752813068001,-513.61,0.00021643,2]
[372934506,1752813068010,-151.0,0.00021643,2]
[372934507,1752813068020,-3286.51,0.00021643,2]
[372934508,1752813068030,-460.0,0.00021643,2]
[372934509,1752813068040,-479.16,0.00021643,2]
[372934510,1752813068049,-151.0,0.00021643,2]
[372934511,1752813068059,-852.12,0.00021643,2]
[372934512,1752813068068,-1073.62,0.00021643,2]
[372934513,1752813068078,-1477.28,0.00021643,2]
[372934514,1752813068088,-774.58,0.00021643,2]
[372934515,1752813068098,-638.51,0.00021643,2]
[372934516,1752813068108,-1916.82,0.00021643,2]
[372934517,1752813068179,-571.08,0.00021643,2]
[372934518,1752813068190,-1136.96,0.00021643,2]
[372934519,1752813068202,-646.05,0.00021643,2]
[372934520,1752813068212,-690.82,0.00021643,2]
[372934521,1752813068222,-2756.34,0.00021643,2]
[372934522,1752813068231,-1040.86,0.00021643,2]
[372934523,1752813068240,-460.0,0.00021643,2]
[372934524,1752813068250,-460.0,0.00021643,2]
[372934525,1752813068260,-467.14,0.00021643,2]
[372934526,1752813068269,-4760.88,0.00021643,2]
[372934527,1752813068279,-472.26,0.00021643,2]
[372934528,1752813068288,-460.0,0.00021643,2]
[372934529,1752813068298,-4406.26,0.00021643,2]
[372934530,1752813068308,-570.06,0.00021643,2]
[372934531,1752813068318,-508.35,0.00021643,2]
[372934532,1752813068327,-472.91,0.00021643,2]
[372934533,1752813068336,-151.0,0.00021643,2]
[372934534,1752813068346,-151.0,0.00021643,2]
[372934535,1752813068356,-856.08,0.00021643,2]
[372934536,1752813068366,-487.92,0.00021643,2]
[372934537,1752813068375,-1340.97,0.00021643,2]
[372934538,1752813068385,-582.41,0.00021643,2]
[372934539,1752813068394,-2433.29,0.00021643,2]
[372934540,1752813068404,-1705.16,0.00021643,2]
[372934541,1752813068414,-1722.56,0.00021643,2]
[372934542,1752813068429,-460.0,0.00021643,2]
[372934543,1752813068439,-505.66,0.00021643,2]
[372934544,1752813068449,-2489.82,0.00021643,2]
[372934545,1752813068461,-2945.34,0.00021643,2]
[372934546,1752813068471,-215.0738,0.00021759,2]
[372934547,1752813068482,-229.18980847,0.00021787,2]
[372934548,1752813068491,-500.0,0.00021868,2]
[372934549,1752813068505,-500.0,0.000219,3]
[372934550,1752813068516,-5956.04084834,0.00021916,2]
[372934551,1752813068526,-513.5,0.00021917,2]
[372934552,1752813068535,-567.04,0.00021917,2]
[372934553,1752813068544,-151.615499,0.00021917,2]
[372934554,1752813068553,-151.0,0.00021917,2]
[372934555,1752813068563,-183.236895,0.00021917,2]
[372934556,1752813068573,-183.236895,0.00021917,2]
[372934557,1752813068583,-479.2269231,0.00021917,2]
[372934558,1752813068594,-777.35,0.00021917,2]
[372934559,1752813068604,-558.88,0.00021917,2]
[372934560,1752813068613,-460.0,0.00021917,2]
[372934561,1752813068623,-460.0,0.00021917,2]
[372934562,1752813068633,-460.0,0.00021917,2]
[372934563,1752813068642,-787.34,0.00021917,2]
[372934564,1752813068652,-1702.85,0.00021917,2]
[372934565,1752813068662,-547.71,0.00021917,2]
[372934566,1752813068671,-555.77,0.00021917,2]
[372934567,1752813068681,-535.54,0.00021917,2]
[372934568,1752813068690,-460.0,0.00021917,2]
[372934569,1752813068699,-173.437322,0.00021917,2]
[372934570,1752813068710,-460.0,0.00021917,2]
[372934571,1752813068724,-1010.83,0.00021917,2]
[372934572,1752813068741,-152.293011,0.00021917,2]
[372934573,1752813068759,-560.37,0.00021917,2]
[372934574,1752813068778,-152.293011,0.00021917,2]
[372934575,1752813068797,-460.0,0.00021917,2]
[372934576,1752813068815,-2738.5,0.00021917,2]
[372934577,1752813068831,-151.0,0.00021917,2]
[372934578,1752813068848,-151.0,0.00021917,2]
[372934579,1752813068862,-525.79,0.00021917,2]
[372934580,1752813068881,-2535.91,0.00021917,2]
[372934581,1752813068901,-349.438868,0.00021917,2]
[372934582,1752813068918,-513.61,0.00021917,2]
[372934583,1752813068932,-3286.51,0.00021917,2]
[372934584,1752813068953,-349.438868,0.00021917,2]
[372934585,1752813068966,-268.13040052,0.00021917,2]
[372934586,1752813068982,-479.16,0.00021917,2]
[372934587,1752813068996,-852.12,0.00021917,2]
[372934588,1752813069012,-1073.62,0.00021917,2]
[372934589,1752813069026,-1477.28,0.00021917,2]
[372934590,1752813069041,-774.58,0.00021917,2]
[372934591,1752813069056,-638.51,0.00021917,2]
[372934592,1752813069069,-1916.82,0.00021917,2]
[372934593,1752813069084,-571.08,0.00021917,2]
[372934594,1752813069098,-1136.96,0.00021917,2]
[372934595,1752813069113,-646.05,0.00021917,2]
[372934596,1752813069128,-690.82,0.00021917,2]
[372934597,1752813069142,-2756.34,0.00021917,2]
[372934598,1752813069157,-1040.86,0.00021917,2]
[372934599,1752813069172,-460.0,0.00021917,2]
[372934600,1752813069187,-460.0,0.00021917,2]
[372934601,1752813069202,-467.14,0.00021917,2]
[372934602,1752813069217,-4760.88,0.00021917,2]
[372934603,1752813069231,-472.26,0.00021917,2]
[372934604,1752813069245,-509.32,0.00021917,2]
[372934605,1752813069261,-4406.26,0.00021917,2]